fUSD/lending_fUSD_20241106
["ID","MTS","AMOUNT","RATE_DAILY","PERIOD"]
[341411594,1730865069193,-512.42,0.00038253,14]
[341411595,1730865069202,-500.0,0.00038253,14]
[341411596,1730865069211,-865.583066,0.00038253,7]
[341411597,1730865069221,-865.583066,0.00038253,7]
[341411598,1730865069230,-28769.7877,0.00038254,2]
[341411599,1730865069239,-100000.0,0.00038254,2]
[341411600,1730865069248,-500.0,0.00038254,2]
[341411601,1730865069258,-1843.1108,0.00038254,2]
[341411602,1730865069267,-385.5201,0.00038254,2]
[341411603,1730865069276,-9725.7865,0.00038254,2]
[341411604,1730865069286,-13533.3966,0.00038254,2]
[341411605,1730865069296,-500.0,0.00038254,14]
[341411606,1730865069305,-500.0,0.00038254,14]
[341411607,1730865069314,-500.0,0.00038254,14]
[341411608,1730865069323,-272.46478479,0.00038254,14]
[341411609,1730865069333,-569.16,0.00038254,14]
[341411610,1730865069342,-500.0,0.00038254,14]
[341411611,1730865069351,-500.0,0.00038254,14]
[341411612,1730865069361,-503.99208136,0.00038254,14]
[341411613,1730865069370,-500.0,0.00038254,14]
[341411614,1730865069379,-500.0,0.00038254,14]
[341411615,1730865069388,-500.0,0.00038254,14]
[341411616,1730865069398,-620.83,0.00038254,14]
[341411617,1730865069408,-500.0,0.00038254,14]
[341411618,1730865069418,-503.77,0.00038254,14]
[341411619,1730865069427,-500.0,0.00038254,14]
[341411620,1730865069437,-500.0,0.00038254,14]
[341411621,1730865069446,-500.0,0.00038254,14]
[341411622,1730865069456,-500.0,0.00038254,14]
[341411623,1730865069465,-420.48067933,0.00038254,14]
[341411624,1730865069475,-758.19,0.00038254,14]
[341411625,1730865069486,-500.0,0.00038254,14]
[341411626,1730865069497,-500.0,0.00038254,14]
[341411627,1730865069508,-500.0,0.00038254,14]
[341411628,1730865069519,-500.0,0.00038254,14]
[341411629,1730865069529,-500.0,0.00038254,14]
[341411630,1730865069539,-1616.43,0.00038254,14]
[341411631,1730865069549,-500.0,0.00038254,14]
[341411632,1730865069560,-500.0,0.00038254,14]
[341411633,1730865069570,-500.0,0.00038254,14]
[341411634,1730865069579,-500.0,0.00038254,14]
[341411635,1730865069589,-500.0,0.00038254,14]
[341411636,1730865069599,-500.0,0.00038254,14]
[341411637,1730865069608,-552.67,0.00038254,14]
[341411638,1730865069618,-500.0,0.00038254,14]
[341411639,1730865069627,-532.42,0.00038254,14]
[341411640,1730865069636,-500.0,0.00038254,14]
[341411641,1730865069645,-500.0,0.00038254,14]
[341411642,1730865069654,-500.0,0.00038254,14]
[341411643,1730865069665,-510.2,0.00038254,14]
[341411644,1730865069675,-560.23052532,0.00038254,14]
[341411645,1730865069684,-500.0,0.00038254,14]
[341411646,1730865069693,-500.0,0.00038254,14]
[341411647,1730865069702,-500.0,0.00038254,14]
[341411648,1730865069711,-500.0,0.00038254,14]
[341411649,1730865069720,-500.0,0.00038254,14]
[341411650,1730865069730,-500.0,0.00038254,14]
[341411651,1730865069739,-446.20387863,0.00038254,14]
[341411652,1730865069748,-500.0,0.00038254,14]
[341411653,1730865069758,-500.0,0.00038254,14]
[341411654,1730865069767,-500.0,0.00038254,14]
[341411655,1730865069776,-500.0,0.00038254,14]
[341411656,1730865069786,-570.95925914,0.00038254,14]
[341411657,1730865069795,-500.0,0.00038254,14]
[341411658,1730865069805,-500.0,0.00038254,14]
[341411659,1730865069814,-500.0,0.00038254,14]
[341411660,1730865069824,-500.0,0.00038254,14]
[341411661,1730865069834,-500.0,0.00038254,14]
[341411662,1730865069844,-500.0,0.00038254,14]
[341411663,1730865069854,-500.0,0.00038254,14]
[341411664,1730865069863,-500.0,0.00038254,14]
[341411665,1730865069872,-500.0,0.00038254,14]
[341411666,1730865069882,-500.0,0.00038254,14]
[341411667,1730865069893,-500.0,0.00038254,14]
[341411668,1730865069902,-500.0,0.00038254,14]
[341411669,1730865069914,-500.0,0.00038254,14]
[341411670,1730865069923,-500.0,0.00038254,14]
[341411671,1730865069933,-500.0,0.00038254,14]
[341411672,1730865069942,-500.0,0.00038254,14]
[341411673,1730865069952,-500.0,0.00038254,14]
[341411674,1730865069962,-500.0,0.00038254,14]
[341411675,1730865069972,-500.0,0.00038254,14]
[341411676,1730865069981,-1000.0,0.00038254,10]
[341411677,1730865069990,-1000.0,0.00038254,10]
[341411678,1730865070000,-774.54,0.00038254,14]
[341411679,1730865070009,-774.54,0.00038254,14]
[341411680,1730865070018,-708.19,0.00038254,14]
[341411681,1730865070027,-708.19,0.00038254,14]
[341411682,1730865070037,-563.41954343,0.00038254,14]
[341411683,1730865070047,-500.0,0.00038254,14]
[341411684,1730865070057,-1135.02,0.00038254,14]
[341411685,1730865070066,-1135.02,0.00038254,14]
[341411686,1730865070076,-500.0,0.00038254,14]
[341411687,1730865070085,-500.0,0.00038254,14]
[341411688,1730865070096,-500.0,0.00038254,14]
[341411689,1730865070107,-500.0,0.00038254,14]
[341411690,1730865070117,-500.0,0.00038254,14]
[341411691,1730865070127,-500.0,0.00038254,14]
[341411692,1730865070136,-500.0,0.00038254,14]
[341411693,1730865070146,-585.91,0.00038254,14]
[341411694,1730865070155,-1837.34,0.00038254,14]
[341411695,1730865070168,-1837.34,0.00038254,14]
[341411696,1730865070177,-761.94,0.00038254,14]
[341411697,1730865070186,-500.0,0.00038254,14]
[341411698,1730865070195,-1535.63,0.00038254,14]
[341411699,1730865070204,-1535.63,0.00038254,14]
[341411700,1730865070214,-151.0,0.00038254,7]
[341411701,1730865070223,-151.0,0.00038254,7]
[341411702,1730865070233,-279.45347,0.00038254,7]
[341411703,1730865070242,-500.0,0.00038254,14]
[341411704,1730865070251,-1036.09,0.00038254,14]
[341411705,1730865070260,-1036.09,0.00038254,14]
[341411706,1730865070269,-668.926011,0.00038254,7]
[341411707,1730865070279,-151.0,0.00038254,7]
[341411708,1730865070288,-668.926011,0.00038254,7]
[341411709,1730865070297,-500.0,0.00038254,14]
[341411710,1730865070306,-2364.31,0.00038254,14]
[341411711,1730865070316,-2364.31,0.00038254,14]
[341411712,1730865070326,-500.0,0.00038254,14]
[341411713,1730865070335,-500.0,0.00038254,14]
[341411714,1730865070344,-701.51,0.00038254,14]
[341411715,1730865070353,-701.51,0.00038254,14]
[341411716,1730865070363,-151.0,0.00038254,7]
[341411717,1730865070372,-151.0,0.00038254,7]
[341411718,1730865070382,-151.0,0.00038254,7]
[341411719,1730865070391,-160.475378,0.00038254,7]
[341411720,1730865070401,-1082.1,0.00038254,14]
[341411721,1730865070414,-1082.1,0.00038254,14]
[341411722,1730865070423,-151.0,0.00038254,7]
[341411723,1730865070434,-151.0,0.00038254,7]
[341411724,1730865070443,-1050.66,0.00038254,14]
[341411725,1730865070453,-1050.66,0.00038254,14]
[341411726,1730865070462,-151.0,0.00038254,7]
[341411727,1730865070473,-151.0,0.00038254,7]
[341411728,1730865070484,-542.021058,0.00038254,7]
[341411729,1730865070495,-722.05,0.00038254,14]
[341411730,1730865070506,-722.05,0.00038254,14]
[341411731,1730865070515,-542.021058,0.00038254,7]
[341411732,1730865070528,-151.0,0.00038254,7]
[341411733,1730865070540,-151.0,0.00038254,7]
[341411734,1730865070552,-151.0,0.00038254,7]
[341411735,1730865070563,-151.0,0.00038254,7]
[341411736,1730865070572,-151.0,0.00038254,7]
[341411737,1730865070581,-156.888591,0.00038254,7]
[341411738,1730865070592,-151.0,0.00038254,7]
[341411739,1730865070602,-151.0,0.00038254,7]
[341411740,1730865070611,-5055.965065,0.00038254,7]
[341411741,1730865070620,-5055.965065,0.00038254,7]
[341411742,1730865070630,-198.401536,0.00038254,7]
[341411743,1730865070640,-198.401536,0.00038254,7]
[341411744,1730865070649,-151.0,0.00038254,7]
[341411745,1730865070660,-500.0,0.00038255,14]
[341411746,1730865070670,-620.83,0.00038255,14]
[341411747,1730865070679,-500.0,0.00038255,14]
[341411748,1730865070689,-610.26087538,0.00038255,14]
[341411749,1730865070698,-261.67321623,0.00038255,14]
[341411750,1730865070707,-552.67,0.00038255,14]
[341411751,1730865070716,-204.88070022,0.00038255,2]
[341411752,1730865070725,-16881.89735402,0.00038288,30]
[341411753,1730865070735,-500.0,0.00038296,14]
[341411754,1730865070745,-500.0,0.00038296,14]
[341411755,1730865070756,-500.0,0.00038296,14]
[341411756,1730865070766,-620.83,0.00038296,14]
[341411757,1730865070775,-500.0,0.00038296,14]
[341411758,1730865070784,-552.67,0.00038296,14]
[341411759,1730865070794,-552.67,0.00038296,14]
[341411760,1730865070803,-552.67,0.00038296,14]
[341411761,1730865070812,-552.67,0.00038296,14]
[341411762,1730865070822,-552.83,0.00038296,14]
[341411763,1730865070831,-500.0,0.00038296,14]
[341411764,1730865070840,-500.0,0.00038296,14]
[341411765,1730865070849,-1000.0,0.00038296,10]
[341411766,1730865070859,-1000.0,0.00038296,10]
[341411767,1730865070868,-774.54,0.00038296,14]
[341411768,1730865070877,-774.54,0.00038296,14]
[341411769,1730865070886,-708.19,0.00038296,14]
[341411770,1730865070896,-708.19,0.00038296,14]
[341411771,1730865070907,-1135.02,0.00038296,14]
[341411772,1730865070918,-1135.02,0.00038296,14]
[341411773,1730865070927,-500.0,0.00038296,14]
[341411774,1730865070937,-557.75250316,0.00038296,14]
[341411775,1730865070947,-500.0,0.00038296,14]
[341411776,1730865070959,-500.0,0.00038296,14]
[341411777,1730865070968,-1837.34,0.00038296,14]
[341411778,1730865070978,-1837.34,0.00038296,14]
[341411779,1730865070987,-1535.63,0.00038296,14]
[341411780,1730865070997,-1535.63,0.00038296,14]
[341411781,1730865071006,-1036.09,0.00038296,14]
[341411782,1730865071015,-1036.09,0.00038296,14]
[341411783,1730865071025,-2364.31,0.00038296,14]
[341411784,1730865071035,-2364.31,0.00038296,14]
[341411785,1730865071044,-701.51,0.00038296,14]
[341411786,1730865071053,-701.51,0.00038296,14]
[341411787,1730865071062,-1082.1,0.00038296,14]
[341411788,1730865071071,-1082.1,0.00038296,14]
[341411789,1730865071080,-1107.13,0.00038296,14]
[341411790,1730865071089,-500.0,0.00038296,14]
[341411791,1730865071098,-1050.66,0.00038296,14]
[341411792,1730865071107,-1050.66,0.00038296,14]
[341411793,1730865071117,-557.71,0.00038296,14]
[341411794,1730865071126,-355.1,0.00038296,14]
[341411795,1730865071136,-1447.7,0.00038296,14]
[341411796,1730865071145,-722.05,0.00038296,14]
[341411797,1730865071155,-722.05,0.00038296,14]
[341411798,1730865071230,-710.13,0.00038296,14]
[341411799,1730865071240,-151.528371,0.00038296,14]
[341411800,1730865071249,-203.783196,0.00038296,14]
[341411801,1730865071259,-500.0,0.00038296,14]
[341411802,1730865071269,-500.0,0.00038296,14]
[341411803,1730865071278,-500.0,0.00038296,14]
[341411804,1730865071287,-509.24150443,0.00038296,14]
[341411805,1730865071296,-500.0,0.00038296,14]
[341411806,1730865071306,-337.73996403,0.00038296,14]
[341411807,1730865071315,-855.85,0.00038296,14]
[341411808,1730865071324,-473.47484872,0.00038296,14]
[341411809,1730865071333,-670.7,0.00038296,14]
[341411810,1730865071342,-670.7,0.00038296,14]
[341411811,1730865071351,-670.7,0.00038296,14]
[341411812,1730865071360,-670.7,0.00038296,14]
[341411813,1730865071369,-670.92309627,0.00038296,14]
[341411814,1730865071378,-512.42,0.00038296,14]
[341411815,1730865071387,-512.42,0.00038296,14]
[341411816,1730865071396,-512.42,0.00038296,14]
[341411817,1730865071405,-512.42,0.00038296,14]
[341411818,1730865071416,-512.43822801,0.00038296,14]
[341411819,1730865071425,-500.0,0.00038296,14]
[341411820,1730865071434,-510.16179754,0.00038296,14]
[341411821,1730865071443,-500.0,0.00038297,14]
[341411822,1730865071453,-500.0,0.00038297,14]
[341411823,1730865071462,-500.0,0.00038297,14]
[341411824,1730865071471,-500.0,0.00038297,14]
[341411825,1730865071481,-500.0,0.00038297,14]
[341411826,1730865071493,-500.0,0.00038297,14]
[341411827,1730865071503,-500.0,0.00038297,14]
[341411828,1730865071513,-500.0,0.00038297,14]
[341411829,1730865071522,-500.0,0.00038297,14]
[341411830,1730865071533,-500.0,0.00038297,14]
[341411831,1730865071542,-500.0,0.00038297,14]
[341411832,1730865071551,-500.0,0.00038297,14]
[341411833,1730865071561,-321.24,0.00038297,14]
[341411834,1730865071571,-500.0,0.00038297,14]
[341411835,1730865071581,-500.0,0.00038297,14]
[341411836,1730865071590,-500.0,0.00038297,14]
[341411837,1730865071599,-500.0,0.00038297,14]
[341411838,1730865071609,-620.83,0.00038297,14]
[341411839,1730865071618,-620.83,0.00038297,14]
[341411840,1730865071628,-620.83,0.00038297,14]
[341411841,1730865071637,-500.0,0.00038297,14]
[341411842,1730865071647,-620.83,0.00038297,14]
[341411843,1730865071656,-500.0,0.00038297,14]
[341411844,1730865071667,-503.77,0.00038297,14]
[341411845,1730865071676,-503.77,0.00038297,14]
[341411846,1730865071686,-500.0,0.00038297,14]
[341411847,1730865071695,-500.0,0.00038297,14]
[341411848,1730865071703,-500.0,0.00038297,14]
[341411849,1730865071712,-500.0,0.00038297,14]
[341411850,1730865071721,-500.0,0.00038297,14]
[341411851,1730865071730,-500.0,0.00038297,14]
[341411852,1730865071738,-500.0,0.00038297,14]
[341411853,1730865071747,-500.0,0.00038297,14]
[341411854,1730865071756,-500.0,0.00038297,14]
[341411855,1730865071766,-500.0,0.00038297,14]
[341411856,1730865071775,-758.19,0.00038297,14]
[341411857,1730865071785,-758.19,0.00038297,14]
[341411858,1730865071796,-500.0,0.00038297,14]
[341411859,1730865071806,-500.0,0.00038297,14]
[341411860,1730865071815,-561.53683338,0.00038297,14]
[341411861,1730865071826,-500.0,0.00038297,14]
[341411862,1730865071835,-264.91205207,0.00038297,14]
[341411863,1730865071844,-500.0,0.00038297,14]
[341411864,1730865071855,-500.0,0.00038297,14]
[341411865,1730865071864,-500.0,0.00038297,14]
[341411866,1730865071874,-500.0,0.00038297,14]
[341411867,1730865071883,-500.0,0.00038297,14]
[341411868,1730865071893,-500.0,0.00038297,14]
[341411869,1730865071903,-500.0,0.00038297,14]
[341411870,1730865071913,-500.0,0.00038297,14]
[341411871,1730865071923,-500.0,0.00038297,14]
[341411872,1730865071932,-500.0,0.00038297,14]
[341411873,1730865071942,-500.0,0.00038297,14]
[341411874,1730865071951,-500.0,0.00038297,14]
[341411875,1730865071960,-532.42,0.00038297,14]
[341411876,1730865071970,-532.42,0.00038297,14]
[341411877,1730865071979,-500.0,0.00038297,14]
[341411878,1730865071989,-500.0,0.00038297,14]
[341411879,1730865071999,-500.0,0.00038297,14]
[341411880,1730865072008,-467.76,0.00038297,14]
[341411881,1730865072017,-188.74083709,0.00038297,14]
[341411882,1730865072026,-500.0,0.00038297,14]
[341411883,1730865072035,-500.0,0.00038297,14]
[341411884,1730865072045,-510.2,0.00038297,14]
[341411885,1730865072054,-510.2,0.00038297,14]
[341411886,1730865072063,-500.0,0.00038297,14]
[341411887,1730865072072,-500.0,0.00038297,14]
[341411888,1730865072082,-381.94,0.00038297,14]
[341411889,1730865072092,-500.0,0.00038297,14]
[341411890,1730865072101,-500.0,0.00038297,14]
[341411891,1730865072110,-500.0,0.00038297,14]
[341411892,1730865072120,-500.0,0.00038297,14]
[341411893,1730865072130,-500.0,0.00038297,14]
[341411894,1730865072139,-500.0,0.00038297,14]
[341411895,1730865072148,-500.0,0.00038297,14]
[341411896,1730865072158,-500.0,0.00038297,14]
[341411897,1730865072169,-511.85522371,0.00038297,14]
[341411898,1730865072178,-500.0,0.00038297,14]
[341411899,1730865072188,-500.0,0.00038297,14]
[341411900,1730865072198,-500.0,0.00038297,14]
[341411901,1730865072207,-500.0,0.00038297,14]
[341411902,1730865072217,-500.0,0.00038297,14]
[341411903,1730865072227,-500.0,0.00038297,14]
[341411904,1730865072236,-500.0,0.00038297,14]
[341411905,1730865072245,-500.0,0.00038297,14]
[341411906,1730865072254,-500.0,0.00038297,14]
[341411907,1730865072263,-495.21178105,0.00038297,14]
[341411908,1730865072272,-500.0,0.00038297,14]
[341411909,1730865072281,-500.0,0.00038297,14]
[341411910,1730865072290,-500.0,0.00038297,14]
[341411911,1730865072299,-500.0,0.00038297,14]
[341411912,1730865072308,-500.0,0.00038297,14]
[341411913,1730865072319,-500.0,0.00038297,14]
[341411914,1730865072328,-500.0,0.00038297,14]
[341411915,1730865072340,-601.18508025,0.00038297,14]
[341411916,1730865072350,-500.0,0.00038297,14]
[341411917,1730865072360,-500.0,0.00038297,14]
[341411918,1730865072370,-500.0,0.00038297,14]
[341411919,1730865072379,-500.0,0.00038297,14]
[341411920,1730865072389,-500.0,0.00038297,14]
[341411921,1730865072399,-500.0,0.00038297,14]
[341411922,1730865072409,-500.0,0.00038297,14]
[341411923,1730865072424,-500.0,0.00038297,14]
[341411924,1730865072434,-500.0,0.00038297,14]
[341411925,1730865072444,-500.0,0.00038297,14]
[341411926,1730865072453,-500.0,0.00038297,14]
[341411927,1730865072463,-500.0,0.00038297,14]
[341411928,1730865072474,-500.0,0.00038297,14]
[341411929,1730865072487,-500.0,0.00038297,14]
[341411930,1730865072497,-500.0,0.00038297,14]
[341411931,1730865072507,-500.0,0.00038297,14]
[341411932,1730865072518,-500.0,0.00038297,14]
[341411933,1730865072531,-510.25748576,0.00038297,14]
[341411934,1730865072543,-500.0,0.00038297,14]
[341411935,1730865072553,-500.0,0.00038297,14]
[341411936,1730865072564,-500.0,0.00038297,14]
[341411937,1730865072573,-500.0,0.00038297,14]
[341411938,1730865072584,-1000.0,0.00038297,10]
[341411939,1730865072595,-572.86712646,0.00038297,10]
[341411940,1730865072606,-774.54,0.00038297,14]
[341411941,1730865072616,-774.54,0.00038297,14]
[341411942,1730865072628,-774.54,0.00038297,14]
[341411943,1730865072637,-774.54,0.00038297,14]
[341411944,1730865072647,-774.54,0.00038297,14]
[341411945,1730865072658,-774.54,0.00038297,14]
[341411946,1730865072668,-774.66471371,0.00038297,14]
[341411947,1730865072678,-708.19,0.00038297,14]
[341411948,1730865072688,-708.19,0.00038297,14]
[341411949,1730865072699,-708.19,0.00038297,14]
[341411950,1730865072709,-708.19,0.00038297,14]
[341411951,1730865072720,-708.19,0.00038297,14]
[341411952,1730865072730,-708.19,0.00038297,14]
[341411953,1730865072740,-708.28144021,0.00038297,14]
[341411954,1730865072752,-591.9720881,0.00038297,14]
[341411955,1730865072763,-500.0,0.00038297,14]
[341411956,1730865072773,-500.0,0.00038297,14]
[341411957,1730865072784,-1135.02,0.00038297,14]
[341411958,1730865072795,-1135.02,0.00038297,14]
[341411959,1730865072806,-1470.86,0.00038297,14]
[341411960,1730865072817,-1135.02,0.00038297,14]
[341411961,1730865072827,-1135.02,0.00038297,14]
[341411962,1730865072837,-1135.02,0.00038297,14]
[341411963,1730865072847,-1135.02,0.00038297,14]
[341411964,1730865072861,-1135.16913178,0.00038297,14]
[341411965,1730865072871,-500.0,0.00038297,14]
[341411966,1730865072880,-500.0,0.00038297,14]
[341411967,1730865072892,-500.0,0.00038297,14]
[341411968,1730865072903,-500.0,0.00038297,14]
[341411969,1730865072915,-500.0,0.00038297,14]
[341411970,1730865072925,-151.0,0.00038297,7]
[341411971,1730865072935,-151.0,0.00038297,7]
[341411972,1730865072945,-1154.4,0.00038297,14]
[341411973,1730865072955,-500.0,0.00038297,14]
[341411974,1730865072966,-151.0,0.00038297,7]
[341411975,1730865072976,-500.0,0.00038297,14]
[341411976,1730865072987,-500.0,0.00038297,14]
[341411977,1730865072997,-500.0,0.00038297,14]
[341411978,1730865073007,-500.0,0.00038297,14]
[341411979,1730865073018,-500.0,0.00038297,14]
[341411980,1730865073029,-500.0,0.00038297,14]
[341411981,1730865073039,-394.13137158,0.00038297,14]
[341411982,1730865073050,-500.0,0.00038297,14]
[341411983,1730865073060,-926.87,0.00038297,14]
[341411984,1730865073070,-500.0,0.00038297,14]
[341411985,1730865073080,-401.0,0.00038297,14]
[341411986,1730865073090,-585.91,0.00038297,14]
[341411987,1730865073100,-585.91,0.00038297,14]
[341411988,1730865073110,-151.0,0.00038297,7]
[341411989,1730865073120,-151.0,0.00038297,7]
[341411990,1730865073130,-928.79,0.00038297,14]
[341411991,1730865073140,-500.0,0.00038297,14]
[341411992,1730865073150,-151.0,0.00038297,7]
[341411993,1730865073160,-500.0,0.00038297,14]
[341411994,1730865073172,-2011.69,0.00038297,14]
[341411995,1730865073182,-761.94,0.00038297,14]
[341411996,1730865073192,-1837.34,0.00038297,14]
[341411997,1730865073201,-761.94,0.00038297,14]
[341411998,1730865073212,-1837.34,0.00038297,14]
[341411999,1730865073222,-1837.34,0.00038297,14]
[341412000,1730865073234,-1837.34,0.00038297,14]
[341412001,1730865073245,-1837.34,0.00038297,14]
[341412002,1730865073257,-1837.34,0.00038297,14]
[341412003,1730865073267,-1541.48,0.00038297,14]
[341412004,1730865073277,-1837.35980833,0.00038297,14]
[341412005,1730865073288,-500.0,0.00038297,14]
[341412006,1730865073299,-500.0,0.00038297,14]
[341412007,1730865073311,-500.0,0.00038297,14]
[341412008,1730865073321,-1535.63,0.00038297,14]
[341412009,1730865073332,-1535.63,0.00038297,14]
[341412010,1730865073344,-500.0,0.00038297,14]
[341412011,1730865073354,-1535.63,0.00038297,14]
[341412012,1730865073364,-1535.63,0.00038297,14]
[341412013,1730865073374,-1535.63,0.00038297,14]
[341412014,1730865073384,-1535.63,0.00038297,14]
[341412015,1730865073396,-1535.64221722,0.00038297,14]
[341412016,1730865073407,-500.0,0.00038297,14]
[341412017,1730865073419,-167.03,0.00038297,14]
[341412018,1730865073429,-3498.61,0.00038297,14]
[341412019,1730865073443,-500.0,0.00038297,14]
[341412020,1730865073457,-1036.09,0.00038297,14]
[341412021,1730865073470,-1036.09,0.00038297,14]
[341412022,1730865073487,-1036.09,0.00038297,14]
[341412023,1730865073498,-1036.09,0.00038297,14]
[341412024,1730865073511,-1036.09,0.00038297,14]
[341412025,1730865073523,-1036.09,0.00038297,14]
[341412026,1730865073538,-1036.3011706,0.00038297,14]
[341412027,1730865073551,-151.0,0.00038297,7]
[341412028,1730865073565,-151.0,0.00038297,7]
[341412029,1730865073579,-151.0,0.00038297,7]
[341412030,1730865073595,-564.32569387,0.00038297,14]
[341412031,1730865073608,-2364.31,0.00038297,14]
[341412032,1730865073621,-2364.31,0.00038297,14]
[341412033,1730865073634,-2364.31,0.00038297,14]
[341412034,1730865073646,-2364.31,0.00038297,14]
[341412035,1730865073661,-2364.31,0.00038297,14]
[341412036,1730865073676,-2364.31,0.00038297,14]
[341412037,1730865073689,-2364.41546411,0.00038297,14]
[341412038,1730865073700,-500.0,0.00038297,14]
[341412039,1730865073712,-500.0,0.00038297,14]
[341412040,1730865073723,-689.85,0.00038297,14]
[341412041,1730865073737,-151.0,0.00038297,7]
[341412042,1730865073750,-500.0,0.00038297,14]
[341412043,1730865073763,-500.0,0.00038297,14]
[341412044,1730865073776,-151.0,0.00038297,7]
[341412045,1730865073790,-701.51,0.00038297,14]
[341412046,1730865073805,-701.51,0.00038297,14]
[341412047,1730865073817,-701.51,0.00038297,14]
[341412048,1730865073827,-701.51,0.00038297,14]
[341412049,1730865073838,-701.51,0.00038297,14]
[341412050,1730865073850,-701.51,0.00038297,14]
[341412051,1730865073863,-701.52403667,0.00038297,14]
[341412052,1730865073876,-151.0,0.00038297,7]
[341412053,1730865073887,-151.0,0.00038297,7]
[341412054,1730865073899,-156.900614,0.00038297,7]
[341412055,1730865073913,-151.0,0.00038297,7]
[341412056,1730865073925,-1082.1,0.00038297,14]
[341412057,1730865073937,-1082.1,0.00038297,14]
[341412058,1730865073949,-1082.1,0.00038297,14]
[341412059,1730865073959,-1082.1,0.00038297,14]
[341412060,1730865073971,-1082.1,0.00038297,14]
[341412061,1730865073983,-1082.1,0.00038297,14]
[341412062,1730865073995,-1082.28786248,0.00038297,14]
[341412063,1730865074006,-151.0,0.00038297,7]
[341412064,1730865074018,-1050.66,0.00038297,14]
[341412065,1730865074030,-1050.66,0.00038297,14]
[341412066,1730865074041,-1050.66,0.00038297,14]
[341412067,1730865074053,-1050.66,0.00038297,14]
[341412068,1730865074064,-1050.66,0.00038297,14]
[341412069,1730865074076,-1050.66,0.00038297,14]
[341412070,1730865074088,-1050.89558978,0.00038297,14]
[341412071,1730865074100,-722.05,0.00038297,14]
[341412072,1730865074111,-722.05,0.00038297,14]
[341412073,1730865074123,-722.05,0.00038297,14]
[341412074,1730865074134,-722.05,0.00038297,14]
[341412075,1730865074146,-722.05,0.00038297,14]
[341412076,1730865074157,-722.05,0.00038297,14]
[341412077,1730865074171,-722.16083573,0.00038297,14]
[341412078,1730865074182,-1302.5,0.00038297,14]
[341412079,1730865074194,-675.3,0.00038297,14]
[341412080,1730865074206,-500.0,0.00038297,14]
[341412081,1730865074219,-500.0,0.00038297,14]
[341412082,1730865074230,-986.6,0.00038297,14]
[341412083,1730865074247,-1841.68,0.00038297,14]
[341412084,1730865074260,-1534.99,0.00038297,14]
[341412085,1730865074274,-1449.59,0.00038297,14]
[341412086,1730865074287,-975.81,0.00038297,14]
[341412087,1730865074301,-1451.52,0.00038297,7]
[341412088,1730865074315,-1519.12,0.00038297,14]
[341412089,1730865074328,-151.0,0.00038297,7]
[341412090,1730865074341,-396.113075,0.00038297,7]
[341412091,1730865074355,-500.0,0.00038297,14]
[341412092,1730865074368,-271.057447,0.00038297,7]
[341412093,1730865074381,-396.113075,0.00038297,7]